[Event "Titled Tuesday Blitz July 25 Early 2023"]
[White "UNSTOPPABLE_LEGEND"]
[Black "SicilianPanzer"]
[WhiteElo "2454"]
[BlackElo "2315"]
[Result "1-0"]
[Round "9"]
[TimeControl "180+2"]
[Date "2023.07.25"]
[WhiteClock "0:02:03"]
[BlackClock "0:01:14"]
[Board "136"]

1. Nf3 {[%clk 0:02:38]}  Nf6 {[%clk 0:02:58]} 2. c4 {[%clk 0:02:37]}  e6 {[%clk 0:02:56]} 3. b3 {[%clk 0:02:37]}  a5 {[%clk 0:02:47]} 4. Bb2 {[%clk 0:02:38]}  a4 {[%clk 0:02:47]} 5. bxa4 {[%clk 0:02:27]}  d5 {[%clk 0:02:44]} 6. e3 {[%clk 0:02:26]}  Nbd7 {[%clk 0:02:34]} 7. cxd5 {[%clk 0:02:21]}  exd5 {[%clk 0:02:33]} 8. Be2 {[%clk 0:02:19]}  Nc5 {[%clk 0:02:27]} 9. Nc3 {[%clk 0:02:18]}  Bd7 {[%clk 0:02:25]} 10. O-O {[%clk 0:02:15]}  Nxa4 {[%clk 0:01:55]} 11. Nxa4 {[%clk 0:02:14]}  Rxa4 {[%clk 0:01:53]} 12. Qc2 {[%clk 0:02:10]}  Bd6 {[%clk 0:01:49]} 13. Ne5 {[%clk 0:02:07]}  O-O {[%clk 0:01:42]} 14. Nxd7 {[%clk 0:02:04]}  Qxd7 {[%clk 0:01:41]} 15. Bxf6 {[%clk 0:02:04]}  gxf6 {[%clk 0:01:40]} 16. d4 {[%clk 0:02:04]}  c6 {[%clk 0:01:14]} 17. Qxa4 {[%clk 0:02:03]} 1-0


[Site "https://www.chess.com"]

[Event "Titled Tuesday Blitz July 25 Early 2023"]
[White "Pasti, Aron"]
[Black "Zaksaite, Salomeja"]
[WhiteFideId "785857"]
[BlackFideId "12801496"]
[WhiteElo "2447"]
[BlackElo "2295"]
[Result "0-1"]
[Round "9"]
[TimeControl "180+2"]
[Date "2023.07.25"]
[WhiteClock "0:00:11"]
[BlackClock "0:00:03"]
[Board "138"]

1. e4 {[%clk 0:02:58]}  c5 {[%clk 0:02:59]} 2. d4 {[%clk 0:02:58]}  cxd4 {[%clk 0:02:58]} 3. c3 {[%clk 0:02:58]}  Nf6 {[%clk 0:02:58]} 4. e5 {[%clk 0:02:59]}  Nd5 {[%clk 0:02:58]} 5. cxd4 {[%clk 0:02:59]}  e6 {[%clk 0:02:58]} 6. Nc3 {[%clk 0:03:00]}  Nxc3 {[%clk 0:02:58]} 7. bxc3 {[%clk 0:03:01]}  Qc7 {[%clk 0:02:58]} 8. Bd2 {[%clk 0:03:00]}  d6 {[%clk 0:02:58]} 9. exd6 {[%clk 0:03:00]}  Bxd6 {[%clk 0:02:59]} 10. Nf3 {[%clk 0:03:00]}  Nd7 {[%clk 0:02:59]} 11. Bd3 {[%clk 0:03:00]}  Nf6 {[%clk 0:02:59]} 12. O-O {[%clk 0:03:00]}  O-O {[%clk 0:02:55]} 13. Qc2 {[%clk 0:03:00]}  Bf4 {[%clk 0:02:53]} 14. Rfe1 {[%clk 0:02:51]}  Bxd2 {[%clk 0:02:52]} 15. Qxd2 {[%clk 0:02:52]}  b6 {[%clk 0:02:52]} 16. Ng5 {[%clk 0:02:49]}  Bb7 {[%clk 0:02:49]} 17. Ne4 {[%clk 0:02:40]}  Bxe4 {[%clk 0:02:41]} 18. Bxe4 {[%clk 0:02:41]}  Rac8 {[%clk 0:02:40]} 19. Rac1 {[%clk 0:02:34]}  Nxe4 {[%clk 0:02:40]} 20. Rxe4 {[%clk 0:02:33]}  Rfd8 {[%clk 0:02:28]} 21. Qd3 {[%clk 0:02:31]}  Qc4 {[%clk 0:02:25]} 22. Qc2 {[%clk 0:02:20]}  b5 {[%clk 0:02:17]} 23. Rh4 {[%clk 0:02:19]}  g6 {[%clk 0:02:16]} 24. Qd2 {[%clk 0:02:17]}  Rd7 {[%clk 0:01:45]} 25. Qh6 {[%clk 0:02:05]}  f5 {[%clk 0:01:36]} 26. h3 {[%clk 0:02:04]}  b4 {[%clk 0:01:32]} 27. d5 {[%clk 0:02:04]}  Qxd5 {[%clk 0:01:25]} 28. Rxb4 {[%clk 0:02:03]}  Qd2 {[%clk 0:01:13]} 29. Qxd2 {[%clk 0:01:57]}  Rxd2 {[%clk 0:01:14]} 30. Re1 {[%clk 0:01:52]}  Rc6 {[%clk 0:00:38]} 31. Rb8+ {[%clk 0:01:49]}  Kg7 {[%clk 0:00:31]} 32. Rb7+ {[%clk 0:01:50]}  Kh6 {[%clk 0:00:20]} 33. Rxa7 {[%clk 0:01:50]}  Rxc3 {[%clk 0:00:18]} 34. Rxe6 {[%clk 0:01:50]}  Rc1+ {[%clk 0:00:17]} 35. Kh2 {[%clk 0:01:49]}  Rxf2 {[%clk 0:00:17]} 36. Ree7 {[%clk 0:01:49]}  Rcc2 {[%clk 0:00:16]} 37. Rxh7+ {[%clk 0:01:48]}  Kg5 {[%clk 0:00:16]} 38. h4+ {[%clk 0:01:44]}  Kg4 {[%clk 0:00:15]} 39. Ra4+ {[%clk 0:01:42]}  f4 {[%clk 0:00:14]} 40. Rg7 {[%clk 0:01:29]}  Rxg2+ {[%clk 0:00:14]} 41. Kh1 {[%clk 0:01:29]}  Rh2+ {[%clk 0:00:14]} 42. Kg1 {[%clk 0:01:29]}  Rcg2+ {[%clk 0:00:15]} 43. Kf1 {[%clk 0:01:29]}  Kh3 {[%clk 0:00:14]} 44. Ra3+ {[%clk 0:01:20]}  Kxh4 {[%clk 0:00:03]} 45. Ra4 {[%clk 0:01:03]}  g5 {[%clk 0:00:03]} 46. Ra5 {[%clk 0:00:57]}  g4 {[%clk 0:00:02]} 47. Ra4 {[%clk 0:00:49]}  Kg3 {[%clk 0:00:01]} 48. Rxg4+ {[%clk 0:00:28]}  Kxg4 {[%clk 0:00:01]} 49. Ra8 {[%clk 0:00:25]}  Rf2+ {[%clk 0:00:01]} 50. Kg1 {[%clk 0:00:22]}  Rfg2+ {[%clk 0:00:01]} 51. Kf1 {[%clk 0:00:22]}  Rxa2 {[%clk 0:00:02]} 52. Kg1 {[%clk 0:00:13]}  Rhg2+ {[%clk 0:00:02]} 53. Kf1 {[%clk 0:00:11]}  Rxa8 {[%clk 0:00:03]} 0-1


[Site "https://www.chess.com"]

[Event "Titled Tuesday Blitz July 25 Early 2023"]
[White "Barwinska, Ewa"]
[Black "Rakitic2010"]
[WhiteFideId "21833761"]
[WhiteElo "2286"]
[BlackElo "2430"]
[Result "0-1"]
[Round "9"]
[TimeControl "180+2"]
[Date "2023.07.25"]
[WhiteClock "0:01:30"]
[BlackClock "0:02:03"]
[Board "141"]

1. e4 {[%clk 0:02:56]}  d5 {[%clk 0:02:59]} 2. exd5 {[%clk 0:02:56]}  Nf6 {[%clk 0:02:59]} 3. d4 {[%clk 0:02:50]}  Nxd5 {[%clk 0:02:56]} 4. c4 {[%clk 0:02:48]}  Nf6 {[%clk 0:02:55]} 5. Be3 {[%clk 0:02:46]}  c5 {[%clk 0:02:52]} 6. d5 {[%clk 0:02:40]}  e6 {[%clk 0:02:52]} 7. Nc3 {[%clk 0:02:37]}  exd5 {[%clk 0:02:51]} 8. Nxd5 {[%clk 0:02:37]}  Nxd5 {[%clk 0:02:47]} 9. cxd5 {[%clk 0:02:38]}  Be7 {[%clk 0:02:41]} 10. Nf3 {[%clk 0:02:36]}  O-O {[%clk 0:02:40]} 11. Bc4 {[%clk 0:02:24]}  Bg4 {[%clk 0:02:37]} 12. h3 {[%clk 0:02:24]}  Bh5 {[%clk 0:02:35]} 13. O-O {[%clk 0:02:23]}  Nd7 {[%clk 0:02:35]} 14. d6 {[%clk 0:02:12]}  Bf6 {[%clk 0:02:24]} 15. Bb5 {[%clk 0:02:07]}  Ne5 {[%clk 0:02:18]} 16. Bxc5 {[%clk 0:02:04]}  Nxf3+ {[%clk 0:02:11]} 17. gxf3 {[%clk 0:02:05]}  Qa5 {[%clk 0:02:11]} 18. Qa4 {[%clk 0:02:00]}  Qd2 {[%clk 0:02:06]} 19. Qb4 {[%clk 0:01:48]}  Qg5+ {[%clk 0:02:05]} 20. Kh2 {[%clk 0:01:30]}  Be5+ {[%clk 0:02:03]} 0-1


[Site "https://www.chess.com"]

[Event "Titled Tuesday Blitz July 25 Early 2023"]
[White "Avazkhonov, Alikhon"]
[Black "Fernandez Bustamante, Leancy B."]
[WhiteFideId "14208504"]
[BlackFideId "3523870"]
[WhiteElo "2428"]
[BlackElo "2282"]
[Result "1-0"]
[Round "9"]
[TimeControl "180+2"]
[Date "2023.07.25"]
[WhiteClock "0:00:07"]
[BlackClock "0:00:00"]
[Board "143"]

1. d4 {[%clk 0:03:00]}  c5 {[%clk 0:03:00]} 2. d5 {[%clk 0:03:00]}  d6 {[%clk 0:02:59]} 3. c4 {[%clk 0:03:01]}  e5 {[%clk 0:03:00]} 4. Nc3 {[%clk 0:03:00]}  Nf6 {[%clk 0:02:59]} 5. e4 {[%clk 0:02:59]}  g6 {[%clk 0:03:00]} 6. Be2 {[%clk 0:02:59]}  Bg7 {[%clk 0:03:00]} 7. Nf3 {[%clk 0:02:53]}  O-O {[%clk 0:02:59]} 8. O-O {[%clk 0:02:53]}  Na6 {[%clk 0:02:58]} 9. a3 {[%clk 0:02:52]}  Nc7 {[%clk 0:02:57]} 10. b4 {[%clk 0:02:47]}  b6 {[%clk 0:02:56]} 11. Ne1 {[%clk 0:02:44]}  Nfe8 {[%clk 0:02:54]} 12. Nd3 {[%clk 0:02:42]}  f5 {[%clk 0:02:53]} 13. f3 {[%clk 0:02:43]}  f4 {[%clk 0:02:50]} 14. Bd2 {[%clk 0:02:42]}  h5 {[%clk 0:02:44]} 15. Be1 {[%clk 0:02:38]}  g5 {[%clk 0:02:44]} 16. Bf2 {[%clk 0:02:35]}  Rf7 {[%clk 0:02:36]} 17. Rb1 {[%clk 0:02:21]}  Bf8 {[%clk 0:02:35]} 18. bxc5 {[%clk 0:02:13]}  bxc5 {[%clk 0:02:34]} 19. Bxc5 {[%clk 0:02:14]}  dxc5 {[%clk 0:02:15]} 20. Nxe5 {[%clk 0:02:15]}  Rg7 {[%clk 0:02:10]} 21. Nc6 {[%clk 0:02:12]}  Qd7 {[%clk 0:02:00]} 22. e5 {[%clk 0:02:13]}  g4 {[%clk 0:01:51]} 23. Ne4 {[%clk 0:02:13]}  g3 {[%clk 0:01:44]} 24. h3 {[%clk 0:02:11]}  Ne6 {[%clk 0:01:32]} 25. dxe6 {[%clk 0:01:46]}  Qxc6 {[%clk 0:01:29]} 26. Nf6+ {[%clk 0:01:47]}  Kh8 {[%clk 0:01:17]} 27. Qd5 {[%clk 0:01:44]}  Bb7 {[%clk 0:01:03]} 28. Nd7 {[%clk 0:01:36]}  Nc7 {[%clk 0:00:55]} 29. Qd3 {[%clk 0:01:04]}  Nxe6 {[%clk 0:00:16]} 30. Nf6 {[%clk 0:01:04]}  Nd4 {[%clk 0:00:14]} 31. Rb2 {[%clk 0:00:59]}  Rd8 {[%clk 0:00:11]} 32. Rfb1 {[%clk 0:00:52]}  Qc8 {[%clk 0:00:09]} 33. Rxb7 {[%clk 0:00:07]}  Rxb7 {[%clk 0:00:10]} 34. Rxb7 {[%clk 0:00:07]}  Qxb7 {[%clk 0:00:00]} 35. Qg6 {[%clk 0:00:07]} 1-0


[Site "https://www.chess.com"]

[Event "Titled Tuesday Blitz July 25 Early 2023"]
[White "Joshi, Pankaj"]
[Black "Ai, Evan"]
[WhiteFideId "5006210"]
[BlackFideId "2094770"]
[WhiteElo "2254"]
[BlackElo "2423"]
[Result "1-0"]
[Round "9"]
[TimeControl "180+2"]
[Date "2023.07.25"]
[WhiteClock "0:00:37"]
[BlackClock "0:00:04"]
[Board "144"]

1. e4 {[%clk 0:03:00]}  e5 {[%clk 0:01:40]} 2. Nf3 {[%clk 0:02:59]}  Nc6 {[%clk 0:01:40]} 3. Bc4 {[%clk 0:02:58]}  Nf6 {[%clk 0:01:41]} 4. d3 {[%clk 0:02:58]}  Bc5 {[%clk 0:01:38]} 5. c3 {[%clk 0:02:58]}  d6 {[%clk 0:01:39]} 6. Bb3 {[%clk 0:02:57]}  O-O {[%clk 0:01:35]} 7. Bg5 {[%clk 0:02:55]}  h6 {[%clk 0:01:34]} 8. Bh4 {[%clk 0:02:55]}  g5 {[%clk 0:01:20]} 9. Nxg5 {[%clk 0:02:54]}  hxg5 {[%clk 0:01:21]} 10. Bxg5 {[%clk 0:02:55]}  Bxf2+ {[%clk 0:01:15]} 11. Kxf2 {[%clk 0:02:52]}  Ng4+ {[%clk 0:01:15]} 12. Qxg4 {[%clk 0:02:43]}  Bxg4 {[%clk 0:01:14]} 13. Bxd8 {[%clk 0:02:43]}  Raxd8 {[%clk 0:01:15]} 14. Nd2 {[%clk 0:02:43]}  Kg7 {[%clk 0:01:15]} 15. h3 {[%clk 0:02:42]}  Bd7 {[%clk 0:01:00]} 16. g4 {[%clk 0:02:41]}  Ne7 {[%clk 0:00:56]} 17. Ke3 {[%clk 0:02:39]}  c6 {[%clk 0:00:50]} 18. Raf1 {[%clk 0:02:35]}  f6 {[%clk 0:00:49]} 19. Nc4 {[%clk 0:02:24]}  d5 {[%clk 0:00:43]} 20. Nd6 {[%clk 0:02:11]}  b6 {[%clk 0:00:25]} 21. Nf5+ {[%clk 0:02:09]}  Bxf5 {[%clk 0:00:20]} 22. gxf5 {[%clk 0:02:10]}  Kf7 {[%clk 0:00:20]} 23. h4 {[%clk 0:02:09]}  Rg8 {[%clk 0:00:19]} 24. Rfg1 {[%clk 0:02:08]}  Rxg1 {[%clk 0:00:16]} 25. Rxg1 {[%clk 0:02:09]}  Rh8 {[%clk 0:00:16]} 26. Rh1 {[%clk 0:02:06]}  Rg8 {[%clk 0:00:12]} 27. Kf3 {[%clk 0:02:02]}  a5 {[%clk 0:00:09]} 28. h5 {[%clk 0:01:58]}  b5 {[%clk 0:00:09]} 29. a3 {[%clk 0:01:54]}  a4 {[%clk 0:00:09]} 30. Ba2 {[%clk 0:01:54]}  Rg5 {[%clk 0:00:07]} 31. h6 {[%clk 0:01:54]}  Kg8 {[%clk 0:00:07]} 32. c4 {[%clk 0:01:45]}  bxc4 {[%clk 0:00:06]} 33. dxc4 {[%clk 0:01:44]}  dxe4+ {[%clk 0:00:07]} 34. Kxe4 {[%clk 0:01:45]}  Rg4+ {[%clk 0:00:07]} 35. Kf3 {[%clk 0:01:43]}  Rf4+ {[%clk 0:00:07]} 36. Kg3 {[%clk 0:01:43]}  Nxf5+ {[%clk 0:00:07]} 37. Kg2 {[%clk 0:01:42]}  Kh7 {[%clk 0:00:07]} 38. Bb1 {[%clk 0:01:38]}  e4 {[%clk 0:00:07]} 39. Rh5 {[%clk 0:01:35]}  Kg6 {[%clk 0:00:05]} 40. h7 {[%clk 0:01:33]}  Kxh5 {[%clk 0:00:02]} 41. h8=Q+ {[%clk 0:01:33]}  Nh6 {[%clk 0:00:02]} 42. Qe8+ {[%clk 0:01:27]}  Kg5 {[%clk 0:00:02]} 43. Bxe4 {[%clk 0:01:26]}  Ng4 {[%clk 0:00:03]} 44. Bf3 {[%clk 0:01:25]}  Ne5 {[%clk 0:00:03]} 45. Qg8+ {[%clk 0:01:25]}  Kf5 {[%clk 0:00:03]} 46. Qh7+ {[%clk 0:01:25]}  Ke6 {[%clk 0:00:03]} 47. Qg8+ {[%clk 0:01:25]}  Kd6 {[%clk 0:00:03]} 48. Qf8+ {[%clk 0:01:24]}  Ke6 {[%clk 0:00:04]} 49. Qc8+ {[%clk 0:01:22]}  Kd6 {[%clk 0:00:04]} 50. Qf8+ {[%clk 0:01:06]}  Ke6 {[%clk 0:00:04]} 51. Bh5 {[%clk 0:01:06]}  Rxc4 {[%clk 0:00:03]} 52. Qg8+ {[%clk 0:01:05]}  Kd6 {[%clk 0:00:03]} 53. Qf8+ {[%clk 0:01:04]}  Ke6 {[%clk 0:00:04]} 54. Bg4+ {[%clk 0:01:02]}  Rxg4+ {[%clk 0:00:04]} 55. Kf1 {[%clk 0:01:01]}  Rf4+ {[%clk 0:00:04]} 56. Ke2 {[%clk 0:01:00]}  Re4+ {[%clk 0:00:04]} 57. Kd2 {[%clk 0:01:00]}  Rd4+ {[%clk 0:00:05]} 58. Kc3 {[%clk 0:01:00]}  Rc4+ {[%clk 0:00:05]} 59. Kd2 {[%clk 0:00:59]}  Rd4+ {[%clk 0:00:05]} 60. Kc1 {[%clk 0:01:00]}  Nd3+ {[%clk 0:00:05]} 61. Kc2 {[%clk 0:00:59]}  Ne5 {[%clk 0:00:05]} 62. Qe8+ {[%clk 0:00:58]}  Kd5 {[%clk 0:00:05]} 63. Qd8+ {[%clk 0:00:57]}  Kc5 {[%clk 0:00:05]} 64. Qxf6 {[%clk 0:00:57]}  Nc4 {[%clk 0:00:05]} 65. Qg5+ {[%clk 0:00:57]}  Rd5 {[%clk 0:00:05]} 66. Qe7+ {[%clk 0:00:56]}  Kb6 {[%clk 0:00:05]} 67. Kc1 {[%clk 0:00:41]}  Rb5 {[%clk 0:00:04]} 68. Qd8+ {[%clk 0:00:41]}  Kc5 {[%clk 0:00:04]} 69. Qg5+ {[%clk 0:00:40]}  Kb6 {[%clk 0:00:05]} 70. Qg1+ {[%clk 0:00:40]}  Rc5 {[%clk 0:00:05]} 71. Qd4 {[%clk 0:00:40]}  Kb5 {[%clk 0:00:05]} 72. Kb1 {[%clk 0:00:39]}  Nb6 {[%clk 0:00:05]} 73. Qb4+ {[%clk 0:00:36]}  Ka6 {[%clk 0:00:04]} 74. Qxc5 {[%clk 0:00:37]} 1-0


[Site "https://www.chess.com"]

[Event "Titled Tuesday Blitz July 25 Early 2023"]
[White "Timerkhanov, Alexander"]
[Black "Larina, Maria"]
[WhiteFideId "24177938"]
[BlackFideId "24113182"]
[WhiteElo "2643"]
[BlackElo "2131"]
[Result "1-0"]
[Round "9"]
[TimeControl "180+2"]
[Date "2023.07.25"]
[WhiteClock "0:01:47"]
[BlackClock "0:00:16"]
[Board "148"]

1. d4 {[%clk 0:03:00]}  f5 {[%clk 0:02:57]} 2. e4 {[%clk 0:03:00]}  fxe4 {[%clk 0:02:57]} 3. Nc3 {[%clk 0:03:00]}  Nf6 {[%clk 0:02:58]} 4. Bg5 {[%clk 0:03:01]}  Nc6 {[%clk 0:02:58]} 5. d5 {[%clk 0:03:00]}  Ne5 {[%clk 0:02:58]} 6. Qd4 {[%clk 0:03:00]}  Nf7 {[%clk 0:02:59]} 7. h4 {[%clk 0:03:00]}  c6 {[%clk 0:02:59]} 8. O-O-O {[%clk 0:03:00]}  Qb6 {[%clk 0:02:58]} 9. Qa4 {[%clk 0:02:42]}  Nxd5 {[%clk 0:02:52]} 10. Nxd5 {[%clk 0:02:40]}  cxd5 {[%clk 0:02:52]} 11. Rxd5 {[%clk 0:02:40]}  Qxf2 {[%clk 0:02:35]} 12. Nh3 {[%clk 0:02:39]}  Qb6 {[%clk 0:02:03]} 13. Bb5 {[%clk 0:02:37]}  Nd6 {[%clk 0:01:55]} 14. Re1 {[%clk 0:02:30]}  g6 {[%clk 0:01:46]} 15. h5 {[%clk 0:02:23]}  gxh5 {[%clk 0:01:39]} 16. Nf4 {[%clk 0:02:23]}  Nxb5 {[%clk 0:01:30]} 17. Rxb5 {[%clk 0:02:22]}  Qf2 {[%clk 0:01:29]} 18. Qxe4 {[%clk 0:02:20]}  e6 {[%clk 0:01:00]} 19. Nxh5 {[%clk 0:02:06]}  Be7 {[%clk 0:00:37]} 20. Ng7+ {[%clk 0:02:04]}  Kf7 {[%clk 0:00:35]} 21. Bxe7 {[%clk 0:01:57]}  Kxe7 {[%clk 0:00:29]} 22. Nf5+ {[%clk 0:01:56]}  Kf6 {[%clk 0:00:23]} 23. Qe5+ {[%clk 0:01:50]}  Kf7 {[%clk 0:00:18]} 24. Nd6+ {[%clk 0:01:49]}  Kg6 {[%clk 0:00:16]} 25. Qg5# {[%clk 0:01:47]} 1-0


[Site "https://www.chess.com"]

[Event "Titled Tuesday Blitz July 25 Early 2023"]
[White "Fernandez Siles, Luis"]
[Black "Herman, Daniel"]
[WhiteFideId "2209420"]
[BlackFideId "30935008"]
[WhiteElo "2303"]
[BlackElo "2408"]
[Result "1-0"]
[Round "9"]
[TimeControl "180+2"]
[Date "2023.07.25"]
[WhiteClock "0:00:04"]
[BlackClock "0:00:00"]
[Board "150"]

1. e4 {[%clk 0:03:00]}  d6 {[%clk 0:02:57]} 2. Nc3 {[%clk 0:03:00]}  c5 {[%clk 0:02:55]} 3. Bb5+ {[%clk 0:02:52]}  Nd7 {[%clk 0:02:54]} 4. f4 {[%clk 0:02:51]}  a6 {[%clk 0:02:52]} 5. Bxd7+ {[%clk 0:02:50]}  Bxd7 {[%clk 0:02:52]} 6. Nf3 {[%clk 0:02:50]}  g6 {[%clk 0:02:51]} 7. O-O {[%clk 0:02:50]}  Bg7 {[%clk 0:02:51]} 8. d3 {[%clk 0:02:50]}  Nh6 {[%clk 0:02:49]} 9. Qe1 {[%clk 0:02:47]}  e6 {[%clk 0:02:38]} 10. f5 {[%clk 0:02:40]}  gxf5 {[%clk 0:02:10]} 11. Qg3 {[%clk 0:02:24]}  Rg8 {[%clk 0:01:50]} 12. Qxd6 {[%clk 0:02:01]}  Qe7 {[%clk 0:01:34]} 13. Qb6 {[%clk 0:01:39]}  Bc6 {[%clk 0:01:12]} 14. Be3 {[%clk 0:01:19]}  c4 {[%clk 0:01:12]} 15. Nd4 {[%clk 0:00:51]}  Ng4 {[%clk 0:00:28]} 16. Nxc6 {[%clk 0:00:50]}  Qh4 {[%clk 0:00:29]} 17. Bf4 {[%clk 0:00:42]}  bxc6 {[%clk 0:00:25]} 18. Qxc6+ {[%clk 0:00:30]}  Ke7 {[%clk 0:00:23]} 19. Nd5+ {[%clk 0:00:20]}  exd5 {[%clk 0:00:12]} 20. Bd6+ {[%clk 0:00:20]}  Kd8 {[%clk 0:00:08]} 21. Qxa8+ {[%clk 0:00:15]}  Kd7 {[%clk 0:00:09]} 22. Qxg8 {[%clk 0:00:14]}  Bd4+ {[%clk 0:00:09]} 23. Kh1 {[%clk 0:00:13]}  Kxd6 {[%clk 0:00:09]} 24. h3 {[%clk 0:00:06]}  Qg3 {[%clk 0:00:10]} 25. Qd8+ {[%clk 0:00:06]}  Kc6 {[%clk 0:00:09]} 26. Qa8+ {[%clk 0:00:05]}  Kb6 {[%clk 0:00:09]} 27. Qb8+ {[%clk 0:00:05]}  Kc6 {[%clk 0:00:00]} 28. Qxg3 {[%clk 0:00:04]} 1-0


[Site "https://www.chess.com"]

[Event "Titled Tuesday Blitz July 25 Early 2023"]
[White "Bueno, Alfeu Junior Varela"]
[Black "UgarteCesar"]
[WhiteFideId "2108879"]
[WhiteElo "2389"]
[BlackElo "2292"]
[Result "1-0"]
[Round "9"]
[TimeControl "180+2"]
[Date "2023.07.25"]
[WhiteClock "0:00:10"]
[BlackClock "0:00:16"]
[Board "151"]

1. e4 {[%clk 0:03:00]}  c5 {[%clk 0:02:59]} 2. Nc3 {[%clk 0:03:00]}  Nc6 {[%clk 0:02:58]} 3. f4 {[%clk 0:03:00]}  g6 {[%clk 0:02:58]} 4. Nf3 {[%clk 0:03:01]}  Bg7 {[%clk 0:02:58]} 5. Bb5 {[%clk 0:03:02]}  Nd4 {[%clk 0:02:57]} 6. O-O {[%clk 0:03:02]}  Nxb5 {[%clk 0:02:36]} 7. Nxb5 {[%clk 0:03:03]}  d5 {[%clk 0:02:36]} 8. exd5 {[%clk 0:03:02]}  a6 {[%clk 0:02:36]} 9. Nc3 {[%clk 0:03:02]}  Nf6 {[%clk 0:02:36]} 10. d4 {[%clk 0:03:03]}  Nxd5 {[%clk 0:02:34]} 11. dxc5 {[%clk 0:03:02]}  Nxc3 {[%clk 0:02:34]} 12. Qxd8+ {[%clk 0:03:03]}  Kxd8 {[%clk 0:02:35]} 13. bxc3 {[%clk 0:03:04]}  Bxc3 {[%clk 0:01:50]} 14. Rb1 {[%clk 0:02:57]}  Rb8 {[%clk 0:01:40]} 15. Rb3 {[%clk 0:02:35]}  Bf6 {[%clk 0:01:40]} 16. Rd1+ {[%clk 0:02:09]}  Ke8 {[%clk 0:01:39]} 17. f5 {[%clk 0:02:07]}  Bxf5 {[%clk 0:01:33]} 18. Bf4 {[%clk 0:02:06]}  Bxc2 {[%clk 0:01:23]} 19. Bxb8 {[%clk 0:01:59]}  Bxd1 {[%clk 0:01:23]} 20. Rxb7 {[%clk 0:01:56]}  Kf8 {[%clk 0:01:15]} 21. c6 {[%clk 0:01:22]}  Kg7 {[%clk 0:01:14]} 22. c7 {[%clk 0:01:16]}  Bc2 {[%clk 0:01:06]} 23. Ba7 {[%clk 0:01:10]}  Bf5 {[%clk 0:01:05]} 24. Kf2 {[%clk 0:00:57]}  Rc8 {[%clk 0:01:04]} 25. Ke3 {[%clk 0:00:56]}  e5 {[%clk 0:01:01]} 26. Bc5 {[%clk 0:00:46]}  Be6 {[%clk 0:01:00]} 27. Bd6 {[%clk 0:00:44]}  Bxa2 {[%clk 0:00:38]} 28. Bxe5 {[%clk 0:00:36]}  Bd5 {[%clk 0:00:36]} 29. Rb8 {[%clk 0:00:29]}  Be6 {[%clk 0:00:36]} 30. Rxc8 {[%clk 0:00:20]}  Bxc8 {[%clk 0:00:35]} 31. Kd4 {[%clk 0:00:21]}  a5 {[%clk 0:00:31]} 32. Kc5 {[%clk 0:00:20]}  a4 {[%clk 0:00:31]} 33. Kb4 {[%clk 0:00:20]}  Bxe5 {[%clk 0:00:31]} 34. Nxe5 {[%clk 0:00:20]}  Kf6 {[%clk 0:00:30]} 35. Nc6 {[%clk 0:00:20]}  Ke6 {[%clk 0:00:26]} 36. Nd8+ {[%clk 0:00:13]}  Ke7 {[%clk 0:00:24]} 37. Kxa4 {[%clk 0:00:13]}  f5 {[%clk 0:00:24]} 38. Kb4 {[%clk 0:00:13]}  Kd7 {[%clk 0:00:23]} 39. Kc5 {[%clk 0:00:08]}  Kxc7 {[%clk 0:00:24]} 40. Nf7 {[%clk 0:00:08]}  Bb7 {[%clk 0:00:22]} 41. g3 {[%clk 0:00:08]}  Kd7 {[%clk 0:00:21]} 42. Ng5 {[%clk 0:00:07]}  h6 {[%clk 0:00:21]} 43. Nf7 {[%clk 0:00:08]}  h5 {[%clk 0:00:20]} 44. Nh8 {[%clk 0:00:07]}  g5 {[%clk 0:00:20]} 45. Nf7 {[%clk 0:00:08]}  g4 {[%clk 0:00:19]} 46. Kd4 {[%clk 0:00:07]}  Ke6 {[%clk 0:00:19]} 47. Nd8+ {[%clk 0:00:06]}  Kf6 {[%clk 0:00:17]} 48. Nxb7 {[%clk 0:00:07]}  Kg5 {[%clk 0:00:17]} 49. Ke3 {[%clk 0:00:07]}  h4 {[%clk 0:00:17]} 50. Nc5 {[%clk 0:00:07]}  hxg3 {[%clk 0:00:16]} 51. hxg3 {[%clk 0:00:08]}  Kf6 {[%clk 0:00:16]} 52. Nd3 {[%clk 0:00:07]}  Ke6 {[%clk 0:00:16]} 53. Kf4 {[%clk 0:00:07]}  Kf6 {[%clk 0:00:17]} 54. Nc5 {[%clk 0:00:07]}  Kg6 {[%clk 0:00:17]} 55. Nb7 {[%clk 0:00:07]}  Kf6 {[%clk 0:00:17]} 56. Nd6 {[%clk 0:00:07]}  Ke6 {[%clk 0:00:18]} 57. Nxf5 {[%clk 0:00:08]}  Kf6 {[%clk 0:00:19]} 58. Ne3 {[%clk 0:00:09]}  Kg6 {[%clk 0:00:19]} 59. Nxg4 {[%clk 0:00:09]}  Kf7 {[%clk 0:00:16]} 60. Kg5 {[%clk 0:00:10]} 1-0


[Site "https://www.chess.com"]

[Event "Titled Tuesday Blitz July 25 Early 2023"]
[White "Tarasova, Viktoriya"]
[Black "chessmateto"]
[WhiteFideId "4175840"]
[WhiteElo "2378"]
[BlackElo "2327"]
[Result "1-0"]
[Round "9"]
[TimeControl "180+2"]
[Date "2023.07.25"]
[WhiteClock "0:00:53"]
[BlackClock "0:00:08"]
[Board "152"]

1. d4 {[%clk 0:03:00]}  d5 {[%clk 0:02:59]} 2. c4 {[%clk 0:03:00]}  c6 {[%clk 0:02:58]} 3. Nf3 {[%clk 0:02:59]}  Nf6 {[%clk 0:02:59]} 4. Nc3 {[%clk 0:02:59]}  e6 {[%clk 0:02:58]} 5. Bg5 {[%clk 0:02:57]}  Nbd7 {[%clk 0:02:56]} 6. e3 {[%clk 0:02:57]}  Qa5 {[%clk 0:02:52]} 7. Nd2 {[%clk 0:02:55]}  Ne4 {[%clk 0:02:39]} 8. Ndxe4 {[%clk 0:02:51]}  dxe4 {[%clk 0:02:39]} 9. Bh4 {[%clk 0:02:52]}  Bb4 {[%clk 0:02:37]} 10. Qc2 {[%clk 0:02:50]}  Bxc3+ {[%clk 0:02:35]} 11. bxc3 {[%clk 0:02:50]}  O-O {[%clk 0:02:32]} 12. Be2 {[%clk 0:02:48]}  f5 {[%clk 0:02:25]} 13. O-O {[%clk 0:02:41]}  Nf6 {[%clk 0:02:11]} 14. f3 {[%clk 0:02:39]}  Bd7 {[%clk 0:01:52]} 15. Rac1 {[%clk 0:02:19]}  exf3 {[%clk 0:01:46]} 16. gxf3 {[%clk 0:02:17]}  h6 {[%clk 0:01:38]} 17. Kh1 {[%clk 0:02:17]}  g5 {[%clk 0:01:36]} 18. Bg3 {[%clk 0:02:13]}  Be8 {[%clk 0:01:27]} 19. Rg1 {[%clk 0:02:11]}  Bg6 {[%clk 0:01:25]} 20. h4 {[%clk 0:01:45]}  Kh7 {[%clk 0:01:13]} 21. Bd3 {[%clk 0:01:41]}  Rg8 {[%clk 0:00:59]} 22. hxg5 {[%clk 0:01:36]}  hxg5 {[%clk 0:00:58]} 23. Be5 {[%clk 0:01:36]}  Qd8 {[%clk 0:00:42]} 24. Rxg5 {[%clk 0:01:13]}  Ng4 {[%clk 0:00:22]} 25. f4 {[%clk 0:01:10]}  Nxe5 {[%clk 0:00:19]} 26. dxe5 {[%clk 0:01:07]}  Qb6 {[%clk 0:00:17]} 27. Qh2+ {[%clk 0:00:54]}  Kg7 {[%clk 0:00:17]} 28. Rcg1 {[%clk 0:00:55]}  Rh8 {[%clk 0:00:12]} 29. Rxg6+ {[%clk 0:00:54]}  Kf7 {[%clk 0:00:11]} 30. Rg7+ {[%clk 0:00:54]}  Ke8 {[%clk 0:00:08]} 31. Qxh8# {[%clk 0:00:53]} 1-0


[Site "https://www.chess.com"]